{"text_format":"3","workbook":"xlsx","n_sheets":1,"sheets":["Osobisty budżet miesięczny"],"read":"whole","date_system":"1900"}

{"sheet":"Osobisty budżet miesięczny","index":0,"n_rows":64,"n_cols":10,"rows_kept":64,"merged":[[1,1,1,9],[2,1,2,9],[4,1,6,1],[4,2,4,3],[4,6,5,8],[4,9,5,9],[5,2,5,3],[6,2,6,3],[6,6,7,8],[6,9,7,9],[7,1,9,1],[7,2,7,3],[8,2,8,3],[8,6,9,8],[8,9,9,9],[9,2,9,3],[22,6,22,9],[23,1,23,4],[31,6,31,9],[33,1,33,4],[38,6,38,9],[40,1,40,4],[44,6,44,9],[46,1,46,4],[50,6,50,9],[54,1,54,4],[57,6,57,9],[58,6,59,8],[58,9,59,9],[60,6,61,8],[60,9,61,9],[62,6,63,8],[62,9,63,9]]}
[]
[null,"Osobisty budżet miesięczny"]
[]
[]
[null,"PLANOWANY PRZYCHÓD MIESIĘCZNY","Przychód 1",null,{"v":2500,"d":"2,500 zł"},null,"PRZEWIDYWANE SALDO (przewidywany przychód minus wydatki)",null,null,{"$f":"E7-J59","v":{"v":940,"d":"940 zł"}}]
[null,null,"Przychód dodatkowy",null,{"v":500,"d":"500 zł"}]
[null,null,"Suma przychodu miesięcznego",null,{"$f":"SUM(E5:E6)","v":{"v":3000,"d":"3,000 zł"}},null,"SALDO RZECZYWISTE (przychód rzeczywisty minus wydatki)",null,null,{"$f":"E10-J61","v":{"v":960,"d":"960 zł"}}]
[null,"RZECZYWISTY PRZYCHÓD MIESIĘCZNY","Przychód 1",null,{"v":2500,"d":"2,500 zł"}]
[null,null,"Przychód dodatkowy",null,{"v":500,"d":"500 zł"},null,"RÓŻNICA (rzeczywista minus przewidywana)",null,null,{"$f":"J7-J5","v":{"v":20,"d":"20 zł"}}]
[null,null,"Suma przychodu miesięcznego",null,{"$f":"SUM(E8:E9)","v":{"v":3000,"d":"3,000 zł"}}]
[]
[null,"UTRZYMANIE DOMU","Koszt planowany","Koszt rzeczywisty","Różnica",null,"ROZRYWKA","Koszt planowany","Koszt rzeczywisty","Różnica"]
[null,"Spłata kredytu lub czynsz",{"v":1500,"d":"1,500 zł"},{"v":1400,"d":"1,400 zł"},{"$f":"Tabela_1[[#This Row],[Koszt planowany]]-Tabela_1[[#This Row],[Koszt rzeczywisty]]","v":{"v":100,"d":"100 zł"}},null,"Filmy wideo/DVD",{"v":0,"d":"0 zł"},{"v":50,"d":"50 zł"},{"$f":"Tabela_2[[#This Row],[Koszt planowany]]-Tabela_2[[#This Row],[Koszt rzeczywisty]]","v":{"v":-50,"d":"-50 zł"}}]
[null,"Telefon",{"v":60,"d":"60 zł"},{"v":100,"d":"100 zł"},{"$f":"Tabela_1[[#This Row],[Koszt planowany]]-Tabela_1[[#This Row],[Koszt rzeczywisty]]","v":{"v":-40,"d":"-40 zł"}},null,"Płyty CD",null,null,{"$f":"Tabela_2[[#This Row],[Koszt planowany]]-Tabela_2[[#This Row],[Koszt rzeczywisty]]","v":{"v":0,"d":"0 zł"}}]
[null,"Energia elektryczna",{"v":50,"d":"50 zł"},{"v":60,"d":"60 zł"},{"$f":"Tabela_1[[#This Row],[Koszt planowany]]-Tabela_1[[#This Row],[Koszt rzeczywisty]]","v":{"v":-10,"d":"-10 zł"}},null,"Kino",null,null,{"$f":"Tabela_2[[#This Row],[Koszt planowany]]-Tabela_2[[#This Row],[Koszt rzeczywisty]]","v":{"v":0,"d":"0 zł"}}]
[null,"Gaz",{"v":200,"d":"200 zł"},{"v":180,"d":"180 zł"},{"$f":"Tabela_1[[#This Row],[Koszt planowany]]-Tabela_1[[#This Row],[Koszt rzeczywisty]]","v":{"v":20,"d":"20 zł"}},null,"Koncerty",null,null,{"$f":"Tabela_2[[#This Row],[Koszt planowany]]-Tabela_2[[#This Row],[Koszt rzeczywisty]]","v":{"v":0,"d":"0 zł"}}]
[null,"Woda i ścieki",null,null,{"$f":"Tabela_1[[#This Row],[Koszt planowany]]-Tabela_1[[#This Row],[Koszt rzeczywisty]]","v":{"v":0,"d":"0 zł"}},null,"Imprezy sportowe",null,null,{"$f":"Tabela_2[[#This Row],[Koszt planowany]]-Tabela_2[[#This Row],[Koszt rzeczywisty]]","v":{"v":0,"d":"0 zł"}}]
[null,"Telewizja kablowa",null,null,{"$f":"Tabela_1[[#This Row],[Koszt planowany]]-Tabela_1[[#This Row],[Koszt rzeczywisty]]","v":{"v":0,"d":"0 zł"}},null,"Teatr",null,null,{"$f":"Tabela_2[[#This Row],[Koszt planowany]]-Tabela_2[[#This Row],[Koszt rzeczywisty]]","v":{"v":0,"d":"0 zł"}}]
[null,"Wywóz śmieci",null,null,{"$f":"Tabela_1[[#This Row],[Koszt planowany]]-Tabela_1[[#This Row],[Koszt rzeczywisty]]","v":{"v":0,"d":"0 zł"}},null,"Inne",null,null,{"$f":"Tabela_2[[#This Row],[Koszt planowany]]-Tabela_2[[#This Row],[Koszt rzeczywisty]]","v":{"v":0,"d":"0 zł"}}]
[null,"Konserwacja lub naprawy",null,null,{"$f":"Tabela_1[[#This Row],[Koszt planowany]]-Tabela_1[[#This Row],[Koszt rzeczywisty]]","v":{"v":0,"d":"0 zł"}},null,"Inne",null,null,{"$f":"Tabela_2[[#This Row],[Koszt planowany]]-Tabela_2[[#This Row],[Koszt rzeczywisty]]","v":{"v":0,"d":"0 zł"}}]
[null,"Materiały",null,null,{"$f":"Tabela_1[[#This Row],[Koszt planowany]]-Tabela_1[[#This Row],[Koszt rzeczywisty]]","v":{"v":0,"d":"0 zł"}},null,"Inne",null,null,{"$f":"Tabela_2[[#This Row],[Koszt planowany]]-Tabela_2[[#This Row],[Koszt rzeczywisty]]","v":{"v":0,"d":"0 zł"}}]
[null,"Inne",null,null,{"$f":"Tabela_1[[#This Row],[Koszt planowany]]-Tabela_1[[#This Row],[Koszt rzeczywisty]]","v":{"v":0,"d":"0 zł"}},null,"Suma",{"$f":"SUBTOTAL(109,Tabela_2[Koszt planowany])","v":{"v":0,"d":"0 zł"}},{"$f":"SUBTOTAL(109,Tabela_2[Koszt rzeczywisty])","v":{"v":50,"d":"50 zł"}},{"$f":"SUBTOTAL(109,Tabela_2[Różnica])","v":{"v":-50,"d":"-50 zł"}}]
[null,"Suma",{"$f":"SUBTOTAL(109,Tabela_1[Koszt planowany])","v":{"v":1810,"d":"1,810 zł"}},{"$f":"SUBTOTAL(109,Tabela_1[Koszt rzeczywisty])","v":{"v":1740,"d":"1,740 zł"}},{"$f":"SUBTOTAL(109,Tabela_1[Różnica])","v":{"v":70,"d":"70 zł"}}]
[{"$nulls":6},"POŻYCZKI","Koszt planowany","Koszt rzeczywisty","Różnica"]
[null,"TRANSPORT","Koszt planowany","Koszt rzeczywisty","Różnica",null,"Osobiste",null,null,{"$f":"Tabela_8[[#This Row],[Koszt planowany]]-Tabela_8[[#This Row],[Koszt rzeczywisty]]","v":{"v":0,"d":"0 zł"}}]
[null,"Opłata za samochód",{"v":250,"d":"250 zł"},{"v":250,"d":"250 zł"},{"$f":"Tabela_3[[#This Row],[Koszt planowany]]-Tabela_3[[#This Row],[Koszt rzeczywisty]]","v":{"v":0,"d":"0 zł"}},null,"Kredyt studencki",null,null,{"$f":"Tabela_8[[#This Row],[Koszt planowany]]-Tabela_8[[#This Row],[Koszt rzeczywisty]]","v":{"v":0,"d":"0 zł"}}]
[null,"Opłaty za taksówkę/autobus",null,null,{"$f":"Tabela_3[[#This Row],[Koszt planowany]]-Tabela_3[[#This Row],[Koszt rzeczywisty]]","v":{"v":0,"d":"0 zł"}},null,"Karta kredytowa",null,null,{"$f":"Tabela_8[[#This Row],[Koszt planowany]]-Tabela_8[[#This Row],[Koszt rzeczywisty]]","v":{"v":0,"d":"0 zł"}}]
[null,"Ubezpieczenie",null,null,{"$f":"Tabela_3[[#This Row],[Koszt planowany]]-Tabela_3[[#This Row],[Koszt rzeczywisty]]","v":{"v":0,"d":"0 zł"}},null,"Karta kredytowa",null,null,{"$f":"Tabela_8[[#This Row],[Koszt planowany]]-Tabela_8[[#This Row],[Koszt rzeczywisty]]","v":{"v":0,"d":"0 zł"}}]
[null,"Licencjonowanie",null,null,{"$f":"Tabela_3[[#This Row],[Koszt planowany]]-Tabela_3[[#This Row],[Koszt rzeczywisty]]","v":{"v":0,"d":"0 zł"}},null,"Karta kredytowa",null,null,{"$f":"Tabela_8[[#This Row],[Koszt planowany]]-Tabela_8[[#This Row],[Koszt rzeczywisty]]","v":{"v":0,"d":"0 zł"}}]
[null,"Paliwo",null,null,{"$f":"Tabela_3[[#This Row],[Koszt planowany]]-Tabela_3[[#This Row],[Koszt rzeczywisty]]","v":{"v":0,"d":"0 zł"}},null,"Inne",null,null,{"$f":"Tabela_8[[#This Row],[Koszt planowany]]-Tabela_8[[#This Row],[Koszt rzeczywisty]]","v":{"v":0,"d":"0 zł"}}]
[null,"Konserwacja",null,null,{"$f":"Tabela_3[[#This Row],[Koszt planowany]]-Tabela_3[[#This Row],[Koszt rzeczywisty]]","v":{"v":0,"d":"0 zł"}},null,"Suma",{"$f":"SUBTOTAL(109,Tabela_8[Koszt planowany])","v":{"v":0,"d":"0 zł"}},{"$f":"SUBTOTAL(109,Tabela_8[Koszt rzeczywisty])","v":{"v":0,"d":"0 zł"}},{"$f":"SUBTOTAL(109,Tabela_8[Różnica])","v":{"v":0,"d":"0 zł"}}]
[null,"Inne",null,null,{"$f":"Tabela_3[[#This Row],[Koszt planowany]]-Tabela_3[[#This Row],[Koszt rzeczywisty]]","v":{"v":0,"d":"0 zł"}}]
[null,"Suma",{"$f":"SUBTOTAL(109,Tabela_3[Koszt planowany])","v":{"v":250,"d":"250 zł"}},{"$f":"SUBTOTAL(109,Tabela_3[Koszt rzeczywisty])","v":{"v":250,"d":"250 zł"}},{"$f":"SUBTOTAL(109,Tabela_3[Różnica])","v":{"v":0,"d":"0 zł"}},null,"PODATKI","Koszt planowany","Koszt rzeczywisty","Różnica"]
[{"$nulls":6},"Państwowe",null,null,{"$f":"Tabela_9[[#This Row],[Koszt planowany]]-Tabela_9[[#This Row],[Koszt rzeczywisty]]","v":{"v":0,"d":"0 zł"}}]
[null,"UBEZPIECZENIE","Koszt planowany","Koszt rzeczywisty","Różnica",null,"Wojewódzkie",null,null,{"$f":"Tabela_9[[#This Row],[Koszt planowany]]-Tabela_9[[#This Row],[Koszt rzeczywisty]]","v":{"v":0,"d":"0 zł"}}]
[null,"Dom",null,null,{"$f":"Tabela_4[[#This Row],[Koszt planowany]]-Tabela_4[[#This Row],[Koszt rzeczywisty]]","v":{"v":0,"d":"0 zł"}},null,"Lokalne",null,null,{"$f":"Tabela_9[[#This Row],[Koszt planowany]]-Tabela_9[[#This Row],[Koszt rzeczywisty]]","v":{"v":0,"d":"0 zł"}}]
[null,"Zdrowie",null,null,{"$f":"Tabela_4[[#This Row],[Koszt planowany]]-Tabela_4[[#This Row],[Koszt rzeczywisty]]","v":{"v":0,"d":"0 zł"}},null,"Inne",null,null,{"$f":"Tabela_9[[#This Row],[Koszt planowany]]-Tabela_9[[#This Row],[Koszt rzeczywisty]]","v":{"v":0,"d":"0 zł"}}]
[null,"Życie",null,null,{"$f":"Tabela_4[[#This Row],[Koszt planowany]]-Tabela_4[[#This Row],[Koszt rzeczywisty]]","v":{"v":0,"d":"0 zł"}},null,"Suma",{"$f":"SUBTOTAL(109,Tabela_9[Koszt planowany])","v":{"v":0,"d":"0 zł"}},{"$f":"SUBTOTAL(109,Tabela_9[Koszt rzeczywisty])","v":{"v":0,"d":"0 zł"}},{"$f":"SUBTOTAL(109,Tabela_9[Różnica])","v":{"v":0,"d":"0 zł"}}]
[null,"Inne",null,null,{"$f":"Tabela_4[[#This Row],[Koszt planowany]]-Tabela_4[[#This Row],[Koszt rzeczywisty]]","v":{"v":0,"d":"0 zł"}}]
[null,"Suma",{"$f":"SUBTOTAL(109,Tabela_4[Koszt planowany])","v":{"v":0,"d":"0 zł"}},{"$f":"SUBTOTAL(109,Tabela_4[Koszt rzeczywisty])","v":{"v":0,"d":"0 zł"}},{"$f":"SUBTOTAL(109,Tabela_4[Różnica])","v":{"v":0,"d":"0 zł"}},null,"OSZCZĘDNOŚCI LUB INWESTYCJE","Koszt planowany","Koszt rzeczywisty","Różnica"]
[{"$nulls":6},"Fundusz emerytalny",null,null,{"$f":"Tabela_10[[#This Row],[Koszt planowany]]-Tabela_10[[#This Row],[Koszt rzeczywisty]]","v":{"v":0,"d":"0 zł"}}]
[null,"ŻYWNOŚĆ","Koszt planowany","Koszt rzeczywisty","Różnica",null,"Fundusz inwestycyjny",null,null,{"$f":"Tabela_10[[#This Row],[Koszt planowany]]-Tabela_10[[#This Row],[Koszt rzeczywisty]]","v":{"v":0,"d":"0 zł"}}]
[null,"Artykuły spożywcze",null,null,{"$f":"Tabela_5[[#This Row],[Koszt planowany]]-Tabela_5[[#This Row],[Koszt rzeczywisty]]","v":{"v":0,"d":"0 zł"}},null,"Inne",null,null,{"$f":"Tabela_10[[#This Row],[Koszt planowany]]-Tabela_10[[#This Row],[Koszt rzeczywisty]]","v":{"v":0,"d":"0 zł"}}]
[null,"Restauracje",null,null,{"$f":"Tabela_5[[#This Row],[Koszt planowany]]-Tabela_5[[#This Row],[Koszt rzeczywisty]]","v":{"v":0,"d":"0 zł"}},null,"Suma",{"$f":"SUBTOTAL(109,Tabela_10[Koszt planowany])","v":{"v":0,"d":"0 zł"}},{"$f":"SUBTOTAL(109,Tabela_10[Koszt rzeczywisty])","v":{"v":0,"d":"0 zł"}},{"$f":"SUBTOTAL(109,Tabela_10[Różnica])","v":{"v":0,"d":"0 zł"}}]
[null,"Inne",null,null,{"$f":"Tabela_5[[#This Row],[Koszt planowany]]-Tabela_5[[#This Row],[Koszt rzeczywisty]]","v":{"v":0,"d":"0 zł"}}]
[null,"Suma",{"$f":"SUBTOTAL(109,Tabela_5[Koszt planowany])","v":{"v":0,"d":"0 zł"}},{"$f":"SUBTOTAL(109,Tabela_5[Koszt rzeczywisty])","v":{"v":0,"d":"0 zł"}},{"$f":"SUBTOTAL(109,Tabela_5[Różnica])","v":{"v":0,"d":"0 zł"}},null,"PREZENTY I DOTACJE","Koszt planowany","Koszt rzeczywisty","Różnica"]
[{"$nulls":6},"Cele charytatywne 1",null,null,{"$f":"Tabela_11[[#This Row],[Koszt planowany]]-Tabela_11[[#This Row],[Koszt rzeczywisty]]","v":{"v":0,"d":"0 zł"}}]
[null,"ZWIERZĘTA","Koszt planowany","Koszt rzeczywisty","Różnica",null,"Cele charytatywne 2",null,null,{"$f":"Tabela_11[[#This Row],[Koszt planowany]]-Tabela_11[[#This Row],[Koszt rzeczywisty]]","v":{"v":0,"d":"0 zł"}}]
[null,"Żywność",null,null,{"$f":"Tabela_6[[#This Row],[Koszt planowany]]-Tabela_6[[#This Row],[Koszt rzeczywisty]]","v":{"v":0,"d":"0 zł"}},null,"Cele charytatywne 3",null,null,{"$f":"Tabela_11[[#This Row],[Koszt planowany]]-Tabela_11[[#This Row],[Koszt rzeczywisty]]","v":{"v":0,"d":"0 zł"}}]
[null,"Artykuły medyczne",null,null,{"$f":"Tabela_6[[#This Row],[Koszt planowany]]-Tabela_6[[#This Row],[Koszt rzeczywisty]]","v":{"v":0,"d":"0 zł"}},null,"Suma",{"$f":"SUBTOTAL(109,Tabela_11[Koszt planowany])","v":{"v":0,"d":"0 zł"}},{"$f":"SUBTOTAL(109,Tabela_11[Koszt rzeczywisty])","v":{"v":0,"d":"0 zł"}},{"$f":"SUBTOTAL(109,Tabela_11[Różnica])","v":{"v":0,"d":"0 zł"}}]
[null,"Pielęgnacja",null,null,{"$f":"Tabela_6[[#This Row],[Koszt planowany]]-Tabela_6[[#This Row],[Koszt rzeczywisty]]","v":{"v":0,"d":"0 zł"}}]
[null,"Zabawki",null,null,{"$f":"Tabela_6[[#This Row],[Koszt planowany]]-Tabela_6[[#This Row],[Koszt rzeczywisty]]","v":{"v":0,"d":"0 zł"}},null,"USŁUGI PRAWNICZE","Koszt planowany","Koszt rzeczywisty","Różnica"]
[null,"Inne",null,null,{"$f":"Tabela_6[[#This Row],[Koszt planowany]]-Tabela_6[[#This Row],[Koszt rzeczywisty]]","v":{"v":0,"d":"0 zł"}},null,"Adwokat",null,null,{"$f":"Tabela_12[[#This Row],[Koszt planowany]]-Tabela_12[[#This Row],[Koszt rzeczywisty]]","v":{"v":0,"d":"0 zł"}}]
[null,"Suma",{"$f":"SUBTOTAL(109,Tabela_6[Koszt planowany])","v":{"v":0,"d":"0 zł"}},{"$f":"SUBTOTAL(109,Tabela_6[Koszt rzeczywisty])","v":{"v":0,"d":"0 zł"}},{"$f":"SUBTOTAL(109,Tabela_6[Różnica])","v":{"v":0,"d":"0 zł"}},null,"Alimenty",null,null,{"$f":"Tabela_12[[#This Row],[Koszt planowany]]-Tabela_12[[#This Row],[Koszt rzeczywisty]]","v":{"v":0,"d":"0 zł"}}]
[{"$nulls":6},"Opłaty sądowe",null,null,{"$f":"Tabela_12[[#This Row],[Koszt planowany]]-Tabela_12[[#This Row],[Koszt rzeczywisty]]","v":{"v":0,"d":"0 zł"}}]
[null,"WYDATKI OSOBISTE","Koszt planowany","Koszt rzeczywisty","Różnica",null,"Inne",null,null,{"$f":"Tabela_12[[#This Row],[Koszt planowany]]-Tabela_12[[#This Row],[Koszt rzeczywisty]]","v":{"v":0,"d":"0 zł"}}]
[null,"Artykuły medyczne",null,null,{"$f":"Tabela_7[[#This Row],[Koszt planowany]]-Tabela_7[[#This Row],[Koszt rzeczywisty]]","v":{"v":0,"d":"0 zł"}},null,"Suma",{"$f":"SUBTOTAL(109,Tabela_12[Koszt planowany])","v":{"v":0,"d":"0 zł"}},{"$f":"SUBTOTAL(109,Tabela_12[Koszt rzeczywisty])","v":{"v":0,"d":"0 zł"}},{"$f":"SUBTOTAL(109,Tabela_12[Różnica])","v":{"v":0,"d":"0 zł"}}]
[null,"Włosy/paznokcie",null,null,{"$f":"Tabela_7[[#This Row],[Koszt planowany]]-Tabela_7[[#This Row],[Koszt rzeczywisty]]","v":{"v":0,"d":"0 zł"}}]
[null,"Ubrania",null,null,{"$f":"Tabela_7[[#This Row],[Koszt planowany]]-Tabela_7[[#This Row],[Koszt rzeczywisty]]","v":{"v":0,"d":"0 zł"}},null,"SUMA KOSZTÓW PLANOWANYCH",null,null,{"$f":"SUM(C23,C33,C40,C46,C54,C64,H22,H31,H38,H44,H50,H57)","v":{"v":2060,"d":"2,060 zł"}}]
[null,"Pralnia chemiczna",null,null,{"$f":"Tabela_7[[#This Row],[Koszt planowany]]-Tabela_7[[#This Row],[Koszt rzeczywisty]]","v":{"v":0,"d":"0 zł"}}]
[null,"Klub sportowy",null,null,{"$f":"Tabela_7[[#This Row],[Koszt planowany]]-Tabela_7[[#This Row],[Koszt rzeczywisty]]","v":{"v":0,"d":"0 zł"}},null,"SUMA KOSZTÓW RZECZYWISTYCH",null,null,{"$f":"SUM(D23,D33,D40,D46,D54,D64,I22,I31,I38,I44,I50,I57)","v":{"v":2040,"d":"2,040 zł"}}]
[null,"Opłaty na cele organizacji",null,null,{"$f":"Tabela_7[[#This Row],[Koszt planowany]]-Tabela_7[[#This Row],[Koszt rzeczywisty]]","v":{"v":0,"d":"0 zł"}}]
[null,"Inne",null,null,{"$f":"Tabela_7[[#This Row],[Koszt planowany]]-Tabela_7[[#This Row],[Koszt rzeczywisty]]","v":{"v":0,"d":"0 zł"}},null,"SUMA RÓŻNIC",null,null,{"$f":"SUM(E23,E33,E40,E46,E54,E64,J22,J31,J38,J44,J50,J57)","v":{"v":20,"d":"20 zł"}}]
[null,"Suma",{"$f":"SUBTOTAL(109,Tabela_7[Koszt planowany])","v":{"v":0,"d":"0 zł"}},{"$f":"SUBTOTAL(109,Tabela_7[Koszt rzeczywisty])","v":{"v":0,"d":"0 zł"}},{"$f":"SUBTOTAL(109,Tabela_7[Różnica])","v":{"v":0,"d":"0 zł"}}]